{"text_format":"3","workbook":"xlsx","n_sheets":2,"sheets":["Solicitation, Offer, & Bid Form","Unit Prices"],"not_rendered":{"defined_names":2},"read":"whole","date_system":"1900"}

{"sheet":"Solicitation, Offer, & Bid Form","index":0,"n_rows":34,"n_cols":11,"rows_kept":34,"merged":[[0,5,6,6],[1,0,1,4],[2,0,2,4],[2,7,2,10],[3,0,3,4],[3,7,5,10],[4,0,4,4],[5,0,5,4],[6,0,6,4],[6,7,6,10],[7,0,7,10],[8,0,8,10],[9,5,9,10],[10,0,10,10],[11,0,11,3],[11,4,12,10],[12,0,12,3],[13,0,13,10],[14,0,14,10],[15,0,15,10],[16,0,16,4],[16,5,16,7],[17,0,17,2],[17,4,17,7],[17,9,17,10],[18,0,18,1],[18,2,18,7],[19,1,19,7],[20,0,20,1],[20,2,20,7],[20,9,20,10],[21,1,21,4],[21,7,21,10],[22,1,22,4],[22,7,22,10],[23,0,24,4],[23,6,24,10],[25,0,25,4],[25,6,25,10],[26,0,26,5],[26,6,26,10],[27,0,28,10],[29,0,29,10],[30,0,30,10],[33,5,33,8]]}
["SOLICITATION, OFFER, AND BID FORM",{"$nulls":9},"ESCAMBIA COUNTY, FLORIDA"]
["Submit offers to:"]
["Jeff Lovingood, 850-595-4953",{"$nulls":6},"Invitation to Bid"]
["Purchasing Specialist",{"$nulls":6},"Underground Fuel Storage Tanks at Bus Transit & Road Prison"]
["Office of Purchasing, 2nd Floor, Room 11.101"]
["213 Palafox Place, Pensacola, FL  32502"]
["or P.O. Box 1591, Pensacola, FL 32591-1591",{"$nulls":6},"Solicitation Number PD 17-18.081"]
["SOLICITATION"]
["Mailing Date:  August 06, 2018"]
["Pre-Solicitation Conference: A Non-Mandatory",{"$nulls":4},"Pre-Solicitation Conference will be held in the Office of "]
["Purchasing Conference Room, 11.407, at 213 Palafox Pl. Pensacola, FL 32502 at 9:00 AM CDT on August 21, 2018"]
["Offers Will Be Received Until:",{"$nulls":3},"4:00 PM CST, September 12, 2018, and may not be withdrawn within 90 days after such date and time."]
[]
["POSTING OF SOLICITATION TABULATIONS"]
["Solicitation tabulations with Recommended Awards will be posted for review by interested parties at the Escambia County Office of Purchasing, and will remain posted for a period of two (2) business days.  Failure to file a protest in writing within two (2) business days after posting of the soliciation tabulation shall constitute a waiver of any protest relating to this soliciation.  All protests must be filed with the Escambia County Office of Purchasing.  Protests will be handled according to Escambia County Purchasing Ordinance."]
["OFFER (shall be completed by Offeror)"]
["Federal Employer ID Number or S.S. Number:",{"$nulls":9},"Terms of Payment"]
["Delivery Date will be ",{"$nulls":3},"days after receipt of Purchase Order"]
["Vendor Name:"]
["Address:",{"$nulls":9},"Bid Bond Attached"]
["City, State, Zip:",{"$nulls":7},"$"]
["Phone:",{"$nulls":5},"Toll Free:"]
["Fax:",{"$nulls":5},"Contact:"]
[]
[]
["Name & Title of Person Authorized to Sign Offer",{"$nulls":5},"* Signature of Person Authorized to Sign Offer"]
[{"$nulls":6},"(Original Signature Required)"]
["* Failure to execute this Form binding the bidder/proposer's offer shall result in the bid/proposal being rejected as non-responsive."]
[]
["I certify that this offer is made without prior understanding, agreement, or connection, with any Corporation, firm or person submitting an offer for the same materials, supplies, or equipment, and is in all respects fair and without collusion or fraud.  I agree to abide by all conditions of this offer and certify that I am authorized to sign this offer for the Offeror and that the Offeror is in compliance with all requirements of the solicitation, including but not limited to certification requirements.  In submitting an offer to Escambia County Florida, the Offeror agrees that if the offer is accepted, the Offeror will convey, sell, assign or transfer to Escambia County Florida all rights title and interest in and to all causes of action it may now or hereafter acquire under the Anti-trust laws of the United States and the State of Florida for price fixing relating to the particular commodities or services purchase or acquired by Escambia County Florida.  At the County’s discretion, such assignment shall be made and become effective at the time the County tenders final payment to the Offeror."]
["BID FORM"]
[]
[]
[{"$nulls":4},"BASE BID:    $",{"$f":"SUM('Unit Prices'!F3:F16)","v":{"v":0,"d":"0.00"}}]

{"sheet":"Unit Prices","index":1,"n_rows":19,"n_cols":6,"rows_kept":19,"merged":[[0,0,0,5],[18,4,18,5]]}
["UST's at Mass Transit Facility and Road Prison\nMay 25, 2018"]
["Pay Item #","DESCRIPTION","UNITS","QUANTITY","UNIT PRICE","EXT."]
[1,"Mobilization","LS",2,{"v":0,"d":"$0.00"},{"$f":"SUM(D3*E3)","v":{"v":0,"d":"$0.00"}}]
[{"$f":"A3+1","v":2},"Demolition ( includes concrete slab, monitoring and well tops, fuel service manholes, pumps, liner removal at Road operations, and tank closure procedures)","LS",1,{"v":0,"d":"$0.00"},{"v":0,"d":"$0.00"}]
[3,"Fuel containment procedures","LS",1,{"v":0,"d":"$0.00"},{"v":0,"d":"$0.00"}]
[4,"Remove and Replace unsuitable material (if necessary) ( Per FDOT Index 500 & 505)","LS",1,{"v":0,"d":"$0.00"},{"v":0,"d":"$0.00"}]
[5,"Concrete slab replacement (20x55 at Transit and 60x60 at Road Operations)","LS",1,{"v":0,"d":"$0.00"},{"v":0,"d":"$0.00"}]
[6,"Dewatering","LS",1,{"v":0,"d":"$0.00"},{"v":0,"d":"$0.00"}]
[7,"Remove and Replace Unsuitables","LS",1,{"v":0,"d":"$0.00"},{"v":0,"d":"$0.00"}]
[8,"Backfill material (as needed)","LS",1,{"v":0,"d":"$0.00"},{"v":0,"d":"$0.00"}]
[9,"Tank replacement ( includes but not limited to; footer, tie-down, backfill, mechanical and electrical connections, testing, and certification)","LS",6,{"v":0,"d":"$0.00"},{"v":0,"d":"$0.00"}]
[10,"Tank Monitoring System hookup ( includes installation and probe calibration)","LS",4,{"v":0,"d":"$0.00"},{"v":0,"d":"$0.00"}]
[{"$f":"A11+1","v":10},"Sump Motor, fuel service manhole, cover and necessary hookups","LS",4,{"v":0,"d":"$0.00"},{"v":0,"d":"$0.00"}]
[{"$f":"A13+1","v":11},"monitoring well/ access lid manhole covers","LS",4,{"v":0,"d":"$0.00"},{"v":0,"d":"$0.00"}]
[{"$f":"A14+1","v":12},"6\" concrete filled bollards ( remove and replace)","LS",15,{"v":0,"d":"$0.00"},{"v":0,"d":"$0.00"}]
[13,"Silt Fence and erosion control measures (soil stockpile containment)","LS",1,{"v":0,"d":"$0.00"},{"v":0,"d":"$0.00"}]
[]
[]
[{"$nulls":3},"TOTAL PRICE $",{"$f":"SUM(F3:F16)","v":{"v":0,"d":"$0.00"}}]